fUSD/lending_fUSD_20260621
["ID","MTS","AMOUNT","RATE_DAILY","PERIOD"]
[425933526,1782037888000,-500.0,0.00029041,2]
[425933527,1782037888000,-500.0,0.00029041,2]
[425933531,1782037888000,-500.0,0.00029041,2]
[425933532,1782037888000,-741.11,0.00029041,2]
[425933533,1782037888000,-547.54,0.00029041,2]
[425933530,1782037888000,-540.67,0.00029041,2]
[425933473,1782037888000,-500.0,0.00029041,2]
[425933525,1782037888000,-500.0,0.00029041,2]
[425933507,1782037888000,-571.62,0.00029041,2]
[425933529,1782037888000,-500.0,0.00029041,2]
[425933501,1782037888000,-500.0,0.00029041,2]
[425933504,1782037888000,-500.0,0.00029041,2]
[425933472,1782037888000,-500.0,0.00029041,2]
[425933475,1782037888000,-795.25,0.00029041,2]
[425933480,1782037888000,-489.50761162,0.00029041,2]
[425933476,1782037888000,-500.0,0.00029041,2]
[425933477,1782037888000,-500.0,0.00029041,2]
[425933479,1782037888000,-247.76966501,0.00029041,2]
[425933485,1782037888000,-500.0,0.00029041,2]
[425933484,1782037888000,-500.0,0.00029041,2]
[425933487,1782037888000,-500.0,0.00029041,2]
[425933491,1782037888000,-501.12,0.00029041,2]
[425933490,1782037888000,-538.31,0.00029041,2]
[425933486,1782037888000,-500.0,0.00029041,2]
[425933478,1782037888000,-500.0,0.00029041,2]
[425933488,1782037888000,-500.0,0.00029041,2]
[425933494,1782037888000,-500.0,0.00029041,2]
[425933505,1782037888000,-500.0,0.00029041,2]
[425933503,1782037888000,-500.0,0.00029041,2]
[425933499,1782037888000,-935.29,0.00029041,2]
[425933498,1782037888000,-500.0,0.00029041,2]
[425933500,1782037888000,-1098.71,0.00029041,2]
[425933495,1782037888000,-629.24,0.00029041,2]
[425933489,1782037888000,-760.34,0.00029041,2]
[425933496,1782037888000,-500.0,0.00029041,2]
[425933492,1782037888000,-500.0,0.00029041,2]
[425933493,1782037888000,-500.0,0.00029041,2]
[425933502,1782037888000,-500.0,0.00029041,2]
[425933497,1782037888000,-794.81,0.00029041,2]
[425933562,1782037889000,-500.0,0.00029041,2]
[425933560,1782037889000,-203.40784959,0.00029041,2]
[425933565,1782037889000,-500.0,0.00029041,2]
[425933564,1782037889000,-500.0,0.00029041,2]
[425933561,1782037889000,-816.63,0.00029041,2]
[425933570,1782037889000,-500.0,0.00029041,2]
[425933567,1782037889000,-610.84,0.00029041,2]
[425933569,1782037889000,-500.0,0.00029041,2]
[425933566,1782037889000,-500.0,0.00029041,2]
[425933563,1782037889000,-500.0,0.00029041,2]
[425933573,1782037889000,-500.0,0.00029041,2]
[425933572,1782037889000,-500.0,0.00029041,2]
[425933582,1782037889000,-3968.18,0.00029041,2]
[425933574,1782037889000,-500.0,0.00029041,2]
[425933571,1782037889000,-986.57,0.00029041,2]
[425933575,1782037889000,-500.0,0.00029041,2]
[425933577,1782037889000,-500.0,0.00029041,2]
[425933576,1782037889000,-500.0,0.00029041,2]
[425933581,1782037889000,-500.0,0.00029041,2]
[425933552,1782037889000,-500.0,0.00029041,2]
[425933579,1782037889000,-500.0,0.00029041,2]
[425933568,1782037889000,-500.0,0.00029041,2]
[425933558,1782037889000,-500.0,0.00029041,2]
[425933544,1782037889000,-500.0,0.00029041,2]
[425933554,1782037889000,-526.4,0.00029041,2]
[425933578,1782037889000,-500.0,0.00029041,2]
[425933536,1782037889000,-865.71,0.00029041,2]
[425933535,1782037889000,-500.0,0.00029041,2]
[425933539,1782037889000,-500.0,0.00029041,2]
[425933537,1782037889000,-500.0,0.00029041,2]
[425933540,1782037889000,-882.43,0.00029041,2]
[425933538,1782037889000,-500.0,0.00029041,2]
[425933541,1782037889000,-500.0,0.00029041,2]
[425933548,1782037889000,-500.0,0.00029041,2]
[425933550,1782037889000,-500.0,0.00029041,2]
[425933546,1782037889000,-500.0,0.00029041,2]
[425933545,1782037889000,-660.08,0.00029041,2]
[425933547,1782037889000,-1005.32,0.00029041,2]
[425933551,1782037889000,-357.26631943,0.00029041,2]
[425933543,1782037889000,-882.02,0.00029041,2]
[425933542,1782037889000,-1112.44,0.00029041,2]
[425933549,1782037889000,-689.94,0.00029041,2]
[425933553,1782037889000,-1075.1,0.00029041,2]
[425933555,1782037889000,-4702.75,0.00029041,2]
[425933556,1782037889000,-155.77383125,0.00029041,2]
[425933557,1782037889000,-500.0,0.00029041,2]
[425933559,1782037889000,-500.0,0.00029041,2]
[425933580,1782037889000,-500.0,0.00029041,2]
[425933585,1782037889000,-903.99,0.00029041,2]
[425933620,1782037889000,-500.0,0.00029041,2]
[425933608,1782037889000,-500.0,0.00029041,2]
[425933609,1782037889000,-391.66588181,0.00029041,2]
[425933610,1782037889000,-500.0,0.00029041,2]
[425933614,1782037889000,-500.0,0.00029041,2]
[425933625,1782037889000,-500.0,0.00029041,2]
[425933627,1782037889000,-500.0,0.00029041,2]
[425933618,1782037889000,-205.01843079,0.00029041,2]
[425933616,1782037889000,-500.0,0.00029041,2]
[425933623,1782037889000,-500.0,0.00029041,2]
[425933621,1782037889000,-161.00287,0.00029041,2]
[425933626,1782037889000,-1143.85,0.00029041,2]
[425933617,1782037889000,-539.15,0.00029041,2]
[425933619,1782037889000,-819.6,0.00029041,2]
[425933624,1782037889000,-500.0,0.00029041,2]
[425933622,1782037889000,-500.0,0.00029041,2]
[425933628,1782037889000,-500.0,0.00029041,2]
[425933632,1782037889000,-500.0,0.00029041,2]
[425933630,1782037889000,-500.0,0.00029041,2]
[425933631,1782037889000,-500.0,0.00029041,2]
[425933629,1782037889000,-500.0,0.00029041,2]
[425933583,1782037889000,-500.0,0.00029041,2]
[425933612,1782037889000,-500.0,0.00029041,2]
[425933606,1782037889000,-500.0,0.00029041,2]
[425933613,1782037889000,-340.76341297,0.00029041,2]
[425933607,1782037889000,-500.0,0.00029041,2]
[425933586,1782037889000,-500.0,0.00029041,2]
[425933588,1782037889000,-500.0,0.00029041,2]
[425933587,1782037889000,-500.0,0.00029041,2]
[425933590,1782037889000,-500.0,0.00029041,2]
[425933589,1782037889000,-500.0,0.00029041,2]
[425933584,1782037889000,-275.51583195,0.00029041,2]
[425933592,1782037889000,-500.0,0.00029041,2]
[425933604,1782037889000,-500.0,0.00029041,2]
[425933593,1782037889000,-500.0,0.00029041,2]
[425933599,1782037889000,-500.0,0.00029041,2]
[425933595,1782037889000,-500.0,0.00029041,2]
[425933594,1782037889000,-500.0,0.00029041,2]
[425933591,1782037889000,-515.32,0.00029041,2]
[425933596,1782037889000,-500.0,0.00029041,2]
[425933600,1782037889000,-500.0,0.00029041,2]
[425933598,1782037889000,-500.0,0.00029041,2]
[425933601,1782037889000,-933.57,0.00029041,2]
[425933597,1782037889000,-500.0,0.00029041,2]
[425933603,1782037889000,-500.0,0.00029041,2]
[425933602,1782037889000,-500.0,0.00029041,2]
[425933605,1782037889000,-2926.49,0.00029041,2]
[425933615,1782037889000,-500.0,0.00029041,2]
[425933611,1782037889000,-824.86,0.00029041,2]
[425933673,1782037890000,-500.0,0.00029041,2]
[425933672,1782037890000,-500.0,0.00029041,2]
[425933669,1782037890000,-500.0,0.00029041,2]
[425933667,1782037890000,-500.0,0.00029041,2]
[425933671,1782037890000,-1398.44,0.00029041,2]
[425933664,1782037890000,-500.0,0.00029041,2]
[425933665,1782037890000,-500.0,0.00029041,2]
[425933668,1782037890000,-869.83,0.00029041,2]
[425933663,1782037890000,-760.72,0.00029041,2]
[425933670,1782037890000,-213.34747785,0.00029041,2]
[425933666,1782037890000,-791.91,0.00029041,2]
[425933675,1782037890000,-500.0,0.00029041,2]
[425933691,1782037890000,-757.98,0.00029041,2]
[425933676,1782037890000,-3841.84,0.00029041,2]
[425933677,1782037890000,-500.0,0.00029041,2]
[425933681,1782037890000,-2086.7,0.00029041,2]
[425933684,1782037890000,-3292.77,0.00029041,2]
[425933683,1782037890000,-500.0,0.00029041,2]
[425933678,1782037890000,-2010.0,0.00029041,2]
[425933679,1782037890000,-500.0,0.00029041,2]
[425933682,1782037890000,-500.0,0.00029041,2]
[425933685,1782037890000,-500.0,0.00029041,2]
[425933688,1782037890000,-500.0,0.00029041,2]
[425933687,1782037890000,-4255.92,0.00029041,2]
[425933662,1782037890000,-500.0,0.00029041,2]
[425933674,1782037890000,-515.73,0.00029041,2]
[425933658,1782037890000,-343.16140177,0.00029041,2]
[425933638,1782037890000,-1325.61,0.00029041,2]
[425933657,1782037890000,-500.0,0.00029041,2]
[425933633,1782037890000,-500.0,0.00029041,2]
[425933634,1782037890000,-500.0,0.00029041,2]
[425933635,1782037890000,-500.0,0.00029041,2]
[425933636,1782037890000,-500.0,0.00029041,2]
[425933637,1782037890000,-42571.055771,0.00029041,2]
[425933639,1782037890000,-500.0,0.00029041,2]
[425933642,1782037890000,-500.0,0.00029041,2]
[425933641,1782037890000,-500.0,0.00029041,2]
[425933651,1782037890000,-590.33,0.00029041,2]
[425933645,1782037890000,-592.99,0.00029041,2]
[425933650,1782037890000,-500.0,0.00029041,2]
[425933640,1782037890000,-500.0,0.00029041,2]
[425933643,1782037890000,-500.0,0.00029041,2]
[425933648,1782037890000,-836.69,0.00029041,2]
[425933647,1782037890000,-500.0,0.00029041,2]
[425933644,1782037890000,-500.0,0.00029041,2]
[425933649,1782037890000,-500.0,0.00029041,2]
[425933646,1782037890000,-500.0,0.00029041,2]
[425933653,1782037890000,-500.0,0.00029041,2]
[425933661,1782037890000,-500.0,0.00029041,2]
[425933654,1782037890000,-536.81384747,0.00029041,2]
[425933655,1782037890000,-500.0,0.00029041,2]
[425933660,1782037890000,-500.0,0.00029041,2]
[425933652,1782037890000,-500.0,0.00029041,2]
[425933656,1782037890000,-500.0,0.00029041,2]
[425933659,1782037890000,-500.0,0.00029041,2]
[425933694,1782037890000,-500.0,0.00029041,2]
[425933680,1782037890000,-500.0,0.00029041,2]
[425933693,1782037890000,-1345.44,0.00029041,2]
[425933725,1782037890000,-500.0,0.00029041,2]
[425933722,1782037890000,-863.82,0.00029041,2]
[425933723,1782037890000,-736.37,0.00029041,2]
[425933721,1782037890000,-500.0,0.00029041,2]
[425933724,1782037890000,-500.0,0.00029041,2]
[425933730,1782037890000,-500.0,0.00029041,2]
[425933726,1782037890000,-554.99710971,0.00029041,2]
[425933728,1782037890000,-500.0,0.00029041,2]
[425933731,1782037890000,-3874.02,0.00029041,2]
[425933729,1782037890000,-500.0,0.00029041,2]
[425933732,1782037890000,-500.0,0.00029041,2]
[425933737,1782037890000,-747.29,0.00029041,2]
[425933735,1782037890000,-500.0,0.00029041,2]
[425933734,1782037890000,-500.0,0.00029041,2]
[425933733,1782037890000,-500.0,0.00029041,2]
[425933736,1782037890000,-509.56,0.00029041,2]
[425933739,1782037890000,-6285.21,0.00029041,2]
[425933738,1782037890000,-3344.59,0.00029041,2]
[425933742,1782037890000,-6091.66,0.00029041,2]
[425933741,1782037890000,-606.62,0.00029041,2]
[425933740,1782037890000,-500.0,0.00029041,2]
[425933744,1782037890000,-690.61,0.00029041,2]
[425933743,1782037890000,-500.0,0.00029041,2]
[425933745,1782037890000,-500.0,0.00029041,2]
[425933690,1782037890000,-1744.77,0.00029041,2]
[425933715,1782037890000,-584.87,0.00029041,2]
[425933716,1782037890000,-4370.8,0.00029041,2]
[425933727,1782037890000,-500.0,0.00029041,2]
[425933720,1782037890000,-4952.69,0.00029041,2]
[425933712,1782037890000,-853.67,0.00029041,2]
[425933696,1782037890000,-500.0,0.00029041,2]
[425933689,1782037890000,-5206.76,0.00029041,2]
[425933746,1782037890000,-500.0,0.00029041,2]
[425933686,1782037890000,-500.0,0.00029041,2]
[425933692,1782037890000,-500.0,0.00029041,2]
[425933697,1782037890000,-1000.0,0.00029041,2]
[425933698,1782037890000,-500.0,0.00029041,2]
[425933708,1782037890000,-500.0,0.00029041,2]
[425933700,1782037890000,-500.0,0.00029041,2]
[425933699,1782037890000,-958.6,0.00029041,2]
[425933701,1782037890000,-500.0,0.00029041,2]
[425933702,1782037890000,-500.0,0.00029041,2]
[425933695,1782037890000,-500.0,0.00029041,2]
[425933703,1782037890000,-1205.38,0.00029041,2]
[425933705,1782037890000,-500.0,0.00029041,2]
[425933714,1782037890000,-606.08,0.00029041,2]
[425933710,1782037890000,-500.0,0.00029041,2]
[425933717,1782037890000,-500.0,0.00029041,2]
[425933718,1782037890000,-500.0,0.00029041,2]
[425933719,1782037890000,-500.0,0.00029041,2]
[425933713,1782037890000,-6740.75,0.00029041,2]
[425933709,1782037890000,-608.71,0.00029041,2]
[425933707,1782037890000,-500.0,0.00029041,2]
[425933706,1782037890000,-500.0,0.00029041,2]
[425933704,1782037890000,-500.0,0.00029041,2]
[425933711,1782037890000,-500.0,0.00029041,2]
[425933787,1782037891000,-9528.18,0.00029041,2]
[425933777,1782037891000,-8253.82,0.00029041,2]
[425933785,1782037891000,-523.3,0.00029041,2]
[425933776,1782037891000,-10443.29,0.00029041,2]
[425933781,1782037891000,-500.0,0.00029041,2]
[425933782,1782037891000,-4656.76,0.00029041,2]
[425933779,1782037891000,-4071.99,0.00029041,2]
[425933783,1782037891000,-500.0,0.00029041,2]
[425933778,1782037891000,-1115.01,0.00029041,2]
[425933784,1782037891000,-500.0,0.00029041,2]
[425933786,1782037891000,-500.0,0.00029041,2]
[425933789,1782037891000,-7163.35,0.00029041,2]
[425933797,1782037891000,-500.0,0.00029041,2]
[425933791,1782037891000,-1301.74,0.00029041,2]
[425933790,1782037891000,-500.0,0.00029041,2]
[425933794,1782037891000,-500.0,0.00029041,2]
[425933792,1782037891000,-500.0,0.00029041,2]
[425933793,1782037891000,-3935.77,0.00029041,2]
[425933795,1782037891000,-922.78,0.00029041,2]
[425933796,1782037891000,-1073.5,0.00029041,2]
[425933799,1782037891000,-9999.22,0.00029041,2]
[425933798,1782037891000,-1451.53,0.00029041,2]
[425933800,1782037891000,-5836.17,0.00029041,2]
[425933801,1782037891000,-500.0,0.00029041,2]
[425933780,1782037891000,-500.0,0.00029041,2]
[425933788,1782037891000,-1180.04,0.00029041,2]
[425933771,1782037891000,-662.83,0.00029041,2]
[425933747,1782037891000,-5030.0,0.00029041,2]
[425933769,1782037891000,-10103.93,0.00029041,2]
[425933802,1782037891000,-500.0,0.00029041,2]
[425933753,1782037891000,-500.0,0.00029041,2]
[425933750,1782037891000,-353.6216639,0.00029041,2]
[425933751,1782037891000,-896.49,0.00029041,2]
[425933748,1782037891000,-9364.89,0.00029041,2]
[425933749,1782037891000,-500.0,0.00029041,2]
[425933752,1782037891000,-6679.24,0.00029041,2]
[425933754,1782037891000,-500.0,0.00029041,2]
[425933760,1782037891000,-500.0,0.00029041,2]
[425933761,1782037891000,-746.08,0.00029041,2]
[425933764,1782037891000,-4885.48,0.00029041,2]
[425933759,1782037891000,-6938.43,0.00029041,2]
[425933772,1782037891000,-13019.17,0.00029041,2]
[425933755,1782037891000,-6334.76,0.00029041,2]
[425933756,1782037891000,-500.0,0.00029041,2]
[425933757,1782037891000,-500.0,0.00029041,2]
[425933762,1782037891000,-5735.18,0.00029041,2]
[425933763,1782037891000,-2630.75,0.00029041,2]
[425933774,1782037891000,-500.0,0.00029041,2]
[425933765,1782037891000,-560.49,0.00029041,2]
[425933775,1782037891000,-1501.04,0.00029041,2]
[425933766,1782037891000,-8907.33,0.00029041,2]
[425933768,1782037891000,-7097.95,0.00029041,2]
[425933773,1782037891000,-500.0,0.00029041,2]
[425933770,1782037891000,-500.0,0.00029041,2]
[425933767,1782037891000,-500.0,0.00029041,2]
[425933758,1782037891000,-500.0,0.00029041,2]
[425933809,1782037891000,-500.0,0.00029041,2]
[425933803,1782037891000,-500.0,0.00029041,2]
[425933806,1782037891000,-500.0,0.00029041,2]
[425933842,1782037891000,-1221.43,0.00029041,2]
[425933841,1782037891000,-500.0,0.00029041,2]
[425933836,1782037891000,-500.0,0.00029041,2]
[425933840,1782037891000,-151.0,0.00029041,7]
[425933843,1782037891000,-6386.84,0.00029041,2]
[425933839,1782037891000,-500.0,0.00029041,2]
[425933838,1782037891000,-151.0,0.00029041,7]
[425933847,1782037891000,-624.23,0.00029041,2]
[425933846,1782037891000,-8696.2,0.00029041,2]
[425933837,1782037891000,-3846.12,0.00029041,2]
[425933844,1782037891000,-500.0,0.00029041,2]
[425933849,1782037891000,-4404.74,0.00029041,2]
[425933848,1782037891000,-500.0,0.00029041,2]
[425933857,1782037891000,-500.0,0.00029041,2]
[425933851,1782037891000,-578.26,0.00029041,2]
[425933858,1782037891000,-582.18,0.00029041,2]
[425933850,1782037891000,-4194.76,0.00029041,2]
[425933852,1782037891000,-10625.36,0.00029041,2]
[425933854,1782037891000,-500.0,0.00029041,2]
[425933856,1782037891000,-650.62,0.00029041,2]
[425933855,1782037891000,-510.71995396,0.00029041,2]
[425933853,1782037891000,-500.0,0.00029041,2]
[425933859,1782037891000,-500.0,0.00029041,2]
[425933804,1782037891000,-4485.52,0.00029041,2]
[425933860,1782037891000,-1025.47,0.00029041,2]
[425933845,1782037891000,-500.0,0.00029041,2]
[425933835,1782037891000,-3382.74,0.00029041,2]
[425933861,1782037891000,-500.0,0.00029041,2]
[425933832,1782037891000,-798.82,0.00029041,2]
[425933833,1782037891000,-500.0,0.00029041,2]
[425933805,1782037891000,-1479.66,0.00029041,2]
[425933808,1782037891000,-500.0,0.00029041,2]
[425933815,1782037891000,-5736.86,0.00029041,2]
[425933817,1782037891000,-9276.24,0.00029041,2]
[425933811,1782037891000,-500.0,0.00029041,2]
[425933813,1782037891000,-500.0,0.00029041,2]
[425933812,1782037891000,-869.85,0.00029041,2]
[425933818,1782037891000,-656.66,0.00029041,2]
[425933816,1782037891000,-3337.66,0.00029041,2]
[425933814,1782037891000,-500.0,0.00029041,2]
[425933810,1782037891000,-500.0,0.00029041,2]
[425933819,1782037891000,-7741.98,0.00029041,2]
[425933807,1782037891000,-730.93,0.00029041,2]
[425933822,1782037891000,-500.0,0.00029041,2]
[425933821,1782037891000,-500.0,0.00029041,2]
[425933830,1782037891000,-521.32,0.00029041,2]
[425933828,1782037891000,-6319.14,0.00029041,2]
[425933829,1782037891000,-831.38,0.00029041,2]
[425933827,1782037891000,-4906.25,0.00029041,2]
[425933831,1782037891000,-500.0,0.00029041,2]
[425933826,1782037891000,-500.0,0.00029041,2]
[425933823,1782037891000,-611.44,0.00029041,2]
[425933824,1782037891000,-500.0,0.00029041,2]
[425933834,1782037891000,-500.0,0.00029041,2]
[425933820,1782037891000,-7069.12,0.00029041,2]
[425933825,1782037891000,-8742.6,0.00029041,2]
[425933897,1782037892000,-942.63,0.00029041,2]
[425933898,1782037892000,-500.0,0.00029041,2]
[425933896,1782037892000,-2636.35,0.00029041,2]
[425933891,1782037892000,-832.36,0.00029041,2]
[425933892,1782037892000,-500.0,0.00029041,2]
[425933887,1782037892000,-4764.69,0.00029041,2]
[425933894,1782037892000,-1696.94,0.00029041,2]
[425933893,1782037892000,-829.45,0.00029041,2]
[425933901,1782037892000,-597.79,0.00029041,2]
[425933884,1782037892000,-500.0,0.00029041,2]
[425933895,1782037892000,-500.0,0.00029041,2]
[425933905,1782037892000,-2524.57,0.00029041,2]
[425933900,1782037892000,-500.0,0.00029041,2]
[425933909,1782037892000,-500.0,0.00029041,2]
[425933899,1782037892000,-500.0,0.00029041,2]
[425933902,1782037892000,-508.83,0.00029041,2]
[425933906,1782037892000,-3061.09,0.00029041,2]
[425933903,1782037892000,-4259.26,0.00029041,2]
[425933904,1782037892000,-500.0,0.00029041,2]
[425933907,1782037892000,-860.38,0.00029041,2]
[425933910,1782037892000,-459.0,0.00029147,10]
[425933912,1782037892000,-187.4,0.00029171,7]
[425933890,1782037892000,-500.0,0.00029041,2]
[425933908,1782037892000,-5236.41,0.00029041,2]
[425933889,1782037892000,-500.0,0.00029041,2]
[425933873,1782037892000,-6422.86,0.00029041,2]
[425933886,1782037892000,-1155.12,0.00029041,2]
[425933862,1782037892000,-3267.69,0.00029041,2]
[425933863,1782037892000,-500.0,0.00029041,2]
[425933864,1782037892000,-500.0,0.00029041,2]
[425933869,1782037892000,-4316.99,0.00029041,2]
[425933866,1782037892000,-8068.87,0.00029041,2]
[425933870,1782037892000,-500.0,0.00029041,2]
[425933865,1782037892000,-6815.25,0.00029041,2]
[425933867,1782037892000,-526.21,0.00029041,2]
[425933868,1782037892000,-500.0,0.00029041,2]
[425933872,1782037892000,-500.0,0.00029041,2]
[425933882,1782037892000,-500.0,0.00029041,2]
[425933871,1782037892000,-682.33,0.00029041,2]
[425933875,1782037892000,-500.0,0.00029041,2]
[425933874,1782037892000,-4989.66,0.00029041,2]
[425933878,1782037892000,-500.0,0.00029041,2]
[425933876,1782037892000,-500.0,0.00029041,2]
[425933877,1782037892000,-4065.24,0.00029041,2]
[425933879,1782037892000,-500.0,0.00029041,2]
[425933880,1782037892000,-500.0,0.00029041,2]
[425933881,1782037892000,-1027.88,0.00029041,2]
[425933883,1782037892000,-500.0,0.00029041,2]
[425933885,1782037892000,-3597.01,0.00029041,2]
[425933888,1782037892000,-4040.17,0.00029041,2]
[425933916,1782037892000,-234.55,0.00029176,7]
[425933917,1782037892000,-407.47,0.0002918,7]
[425933940,1782037892000,-6020.43,0.00029314,2]
[425933915,1782037892000,-220.25420691,0.00029175,2]
[425933947,1782037892000,-500.0,0.00029315,2]
[425933944,1782037892000,-500.0,0.00029314,2]
[425933943,1782037892000,-3922.95,0.00029314,2]
[425933949,1782037892000,-322.39265818,0.00029315,2]
[425933959,1782037892000,-500.0,0.00029315,2]
[425933951,1782037892000,-500.0,0.00029315,2]
[425933955,1782037892000,-500.0,0.00029315,2]
[425933952,1782037892000,-500.0,0.00029315,2]
[425933948,1782037892000,-500.0,0.00029315,2]
[425933950,1782037892000,-500.0,0.00029315,2]
[425933956,1782037892000,-500.0,0.00029315,2]
[425933953,1782037892000,-541.49715247,0.00029315,2]
[425933957,1782037892000,-500.0,0.00029315,2]
[425933958,1782037892000,-500.0,0.00029315,2]
[425933960,1782037892000,-500.0,0.00029315,2]
[425933962,1782037892000,-500.0,0.00029315,2]
[425933961,1782037892000,-500.0,0.00029315,2]
[425933963,1782037892000,-500.0,0.00029315,2]
[425933965,1782037892000,-500.0,0.00029315,2]
[425933966,1782037892000,-500.0,0.00029315,2]
[425933964,1782037892000,-500.0,0.00029315,2]
[425933967,1782037892000,-500.0,0.00029315,2]
[425933914,1782037892000,-237.42,0.00029174,7]
[425933945,1782037892000,-500.0,0.00029315,2]
[425933942,1782037892000,-516.95,0.00029314,2]
[425933954,1782037892000,-500.0,0.00029315,2]
[425933937,1782037892000,-500.0,0.00029314,2]
[425933946,1782037892000,-773.81,0.00029315,2]
[425933913,1782037892000,-187.46,0.00029173,7]
[425933911,1782037892000,-500.0,0.00029156,60]
[425933921,1782037892000,-57441.87950292,0.00029305,2]
[425933919,1782037892000,-10000.0,0.0002926,2]
[425933918,1782037892000,-2000.0,0.0002926,2]
[425933922,1782037892000,-1204.631058,0.00029305,7]
[425933920,1782037892000,-944.07,0.000293,7]
[425933925,1782037892000,-1204.631058,0.00029305,7]
[425933935,1782037892000,-4096.63,0.00029314,2]
[425933927,1782037892000,-644.98,0.00029314,2]
[425933924,1782037892000,-1204.631058,0.00029305,7]
[425933923,1782037892000,-1204.631058,0.00029305,7]
[425933938,1782037892000,-4086.22,0.00029314,2]
[425933939,1782037892000,-8988.97,0.00029314,2]
[425933928,1782037892000,-2151.96,0.00029314,2]
[425933941,1782037892000,-500.0,0.00029314,2]
[425933936,1782037892000,-9938.39,0.00029314,2]
[425933934,1782037892000,-698.7,0.00029314,2]
[425933933,1782037892000,-7986.83,0.00029314,2]
[425933932,1782037892000,-4510.31,0.00029314,2]
[425933930,1782037892000,-5328.39,0.00029314,2]
[425933929,1782037892000,-3766.43,0.00029314,2]
[425933926,1782037892000,-49535.85663792,0.0002931,2]
[425933931,1782037892000,-3324.04,0.00029314,2]
[425934002,1782037893000,-527.08,0.00029315,2]
[425934005,1782037893000,-500.0,0.00029315,2]
[425934004,1782037893000,-500.0,0.00029315,2]
[425934006,1782037893000,-500.0,0.00029315,2]
[425934013,1782037893000,-500.0,0.00029315,2]
[425934000,1782037893000,-500.0,0.00029315,2]
[425933999,1782037893000,-500.0,0.00029315,2]
[425934001,1782037893000,-500.0,0.00029315,2]
[425933998,1782037893000,-500.0,0.00029315,2]
[425934007,1782037893000,-500.0,0.00029315,2]
[425934003,1782037893000,-500.0,0.00029315,2]
[425934009,1782037893000,-500.0,0.00029315,2]
[425934022,1782037893000,-500.0,0.00029315,2]
[425934010,1782037893000,-500.0,0.00029315,2]
[425934011,1782037893000,-500.0,0.00029315,2]
[425934012,1782037893000,-671.4,0.00029315,2]
[425934014,1782037893000,-672.23,0.00029315,2]
[425934016,1782037893000,-512.6,0.00029315,2]
[425934015,1782037893000,-508.75,0.00029315,2]
[425934017,1782037893000,-500.0,0.00029315,2]
[425934018,1782037893000,-500.0,0.00029315,2]
[425934020,1782037893000,-1403.38,0.00029315,2]
[425934024,1782037893000,-795.25,0.00029315,2]
[425934023,1782037893000,-613.31,0.00029315,2]
[425933992,1782037893000,-612.0,0.00029315,2]
[425934008,1782037893000,-500.0,0.00029315,2]
[425933990,1782037893000,-500.0,0.00029315,2]
[425933972,1782037893000,-500.0,0.00029315,2]